[Event "Titled Tuesday Blitz December 7 2021"]
[White "Bentivegna, Francesco"]
[Black "Eynullayev, Atilla"]
[WhiteFideId "809055"]
[BlackFideId "13413570"]
[WhiteElo "2254"]
[BlackElo "1982"]
[Result "0-1"]
[Round "09"]
[TimeControl "180+1"]
[Date "2021.12.07"]
[WhiteClock "0:00:01"]
[BlackClock "0:00:05"]

1. e4 {[%clk 0:03:00]}  c5 {[%clk 0:02:59]} 2. c3 {[%clk 0:03:00]}  Nf6 {[%clk 0:02:58]} 3. e5 {[%clk 0:03:00]}  Nd5 {[%clk 0:02:58]} 4. d4 {[%clk 0:03:00]}  cxd4 {[%clk 0:02:59]} 5. cxd4 {[%clk 0:03:01]}  d6 {[%clk 0:02:59]} 6. Nf3 {[%clk 0:03:02]}  Nc6 {[%clk 0:02:59]} 7. Bc4 {[%clk 0:03:02]}  dxe5 {[%clk 0:02:59]} 8. Bxd5 {[%clk 0:03:02]}  Qxd5 {[%clk 0:02:59]} 9. Nc3 {[%clk 0:03:02]}  Qd8 {[%clk 0:02:39]} 10. d5 {[%clk 0:03:03]}  Nb8 {[%clk 0:02:32]} 11. Nxe5 {[%clk 0:02:58]}  Nd7 {[%clk 0:02:25]} 12. Bf4 {[%clk 0:02:55]}  g6 {[%clk 0:02:12]} 13. Qf3 {[%clk 0:02:42]}  Nxe5 {[%clk 0:01:41]} 14. Bxe5 {[%clk 0:02:43]}  f6 {[%clk 0:01:40]} 15. Bg3 {[%clk 0:02:34]}  Bg7 {[%clk 0:01:28]} 16. h4 {[%clk 0:02:31]}  h5 {[%clk 0:01:20]} 17. O-O {[%clk 0:02:28]}  O-O {[%clk 0:01:03]} 18. Rfe1 {[%clk 0:02:28]}  Bg4 {[%clk 0:01:02]} 19. Qe3 {[%clk 0:02:25]}  Re8 {[%clk 0:00:50]} 20. f3 {[%clk 0:02:25]}  Bf5 {[%clk 0:00:49]} 21. Rad1 {[%clk 0:02:25]}  a6 {[%clk 0:00:43]} 22. Bf4 {[%clk 0:01:53]}  Rc8 {[%clk 0:00:42]} 23. Bh6 {[%clk 0:01:40]}  b5 {[%clk 0:00:36]} 24. Rd4 {[%clk 0:01:33]}  Bxh6 {[%clk 0:00:28]} 25. Qxh6 {[%clk 0:01:34]}  Qb6 {[%clk 0:00:28]} 26. Qe3 {[%clk 0:01:33]}  e5 {[%clk 0:00:18]} 27. Rd2 {[%clk 0:01:12]}  Qxe3+ {[%clk 0:00:17]} 28. Rxe3 {[%clk 0:01:13]}  b4 {[%clk 0:00:17]} 29. Na4 {[%clk 0:01:05]}  Rc1+ {[%clk 0:00:17]} 30. Kf2 {[%clk 0:01:05]}  Rd8 {[%clk 0:00:16]} 31. Rb3 {[%clk 0:00:54]}  a5 {[%clk 0:00:16]} 32. Re3 {[%clk 0:00:48]}  Kf7 {[%clk 0:00:16]} 33. a3 {[%clk 0:00:44]}  Bc2 {[%clk 0:00:12]} 34. Nc5 {[%clk 0:00:37]}  bxa3 {[%clk 0:00:08]} 35. bxa3 {[%clk 0:00:38]}  Bf5 {[%clk 0:00:07]} 36. Nb7 {[%clk 0:00:37]}  Rd7 {[%clk 0:00:07]} 37. Nxa5 {[%clk 0:00:37]}  Rc5 {[%clk 0:00:07]} 38. Nb3 {[%clk 0:00:25]}  Rcxd5 {[%clk 0:00:08]} 39. Rxd5 {[%clk 0:00:21]}  Rxd5 {[%clk 0:00:09]} 40. Rc3 {[%clk 0:00:21]}  g5 {[%clk 0:00:07]} 41. g3 {[%clk 0:00:20]}  gxh4 {[%clk 0:00:07]} 42. gxh4 {[%clk 0:00:21]}  Be6 {[%clk 0:00:06]} 43. a4 {[%clk 0:00:20]}  Bd7 {[%clk 0:00:05]} 44. a5 {[%clk 0:00:20]}  Ba4 {[%clk 0:00:05]} 45. a6 {[%clk 0:00:20]}  Bxb3 {[%clk 0:00:05]} 46. Rxb3 {[%clk 0:00:21]}  Ra5 {[%clk 0:00:05]} 47. Rb7+ {[%clk 0:00:21]}  Kg6 {[%clk 0:00:06]} 48. a7 {[%clk 0:00:20]}  Kf5 {[%clk 0:00:07]} 49. Kg3 {[%clk 0:00:16]}  Ra3 {[%clk 0:00:07]} 50. Re7 {[%clk 0:00:15]}  Ra2 {[%clk 0:00:05]} 51. Rh7 {[%clk 0:00:13]}  Kg6 {[%clk 0:00:04]} 52. Rb7 {[%clk 0:00:13]}  Ra3 {[%clk 0:00:04]} 53. Kf2 {[%clk 0:00:10]}  Kf5 {[%clk 0:00:04]} 54. Rh7 {[%clk 0:00:09]}  Kf4 {[%clk 0:00:04]} 55. Ke2 {[%clk 0:00:08]}  Ra2+ {[%clk 0:00:04]} 56. Kd3 {[%clk 0:00:06]}  Kxf3 {[%clk 0:00:05]} 57. Rxh5 {[%clk 0:00:05]}  e4+ {[%clk 0:00:06]} 58. Kd4 {[%clk 0:00:04]}  Ra4+ {[%clk 0:00:06]} 59. Kd5 {[%clk 0:00:04]}  Ra5+ {[%clk 0:00:05]} 60. Kd4 {[%clk 0:00:04]}  Ra4+ {[%clk 0:00:05]} 61. Kd5 {[%clk 0:00:03]}  Rxa7 {[%clk 0:00:05]} 62. Rf5+ {[%clk 0:00:03]}  Ke3 {[%clk 0:00:05]} 63. Rxf6 {[%clk 0:00:02]}  Ra5+ {[%clk 0:00:06]} 64. Kc4 {[%clk 0:00:02]}  Rh5 {[%clk 0:00:06]} 65. Re6 {[%clk 0:00:02]}  Rxh4 {[%clk 0:00:05]} 66. Re8 {[%clk 0:00:03]}  Rh5 {[%clk 0:00:05]} 67. Kc3 {[%clk 0:00:03]}  Rh7 {[%clk 0:00:05]} 68. Rc8 {[%clk 0:00:03]}  Rd7 {[%clk 0:00:06]} 69. Kc2 {[%clk 0:00:03]}  Ke2 {[%clk 0:00:06]} 70. Re8 {[%clk 0:00:02]}  e3 {[%clk 0:00:07]} 71. Rh8 {[%clk 0:00:03]}  Kf1 {[%clk 0:00:04]} 72. Rg8 {[%clk 0:00:02]}  e2 {[%clk 0:00:05]} 73. Rf8+ {[%clk 0:00:03]}  Ke1 {[%clk 0:00:05]} 74. Rf6 {[%clk 0:00:02]}  Rc7+ {[%clk 0:00:05]} 75. Kd3 {[%clk 0:00:02]}  Kd1 {[%clk 0:00:05]} 76. Rf2 {[%clk 0:00:01]}  e1=Q {[%clk 0:00:05]} 0-1


[Site "https://www.chess.com"]

[Event "Titled Tuesday Blitz December 7 2021"]
[White "Chernov, Alexander A."]
[Black "Martin Carmona, Gaston Manuel"]
[WhiteFideId "4152492"]
[BlackFideId "22284567"]
[WhiteElo "1867"]
[BlackElo "2161"]
[Result "0-1"]
[Round "09"]
[TimeControl "180+1"]
[Date "2021.12.07"]
[WhiteClock "0:00:01"]
[BlackClock "0:00:39"]

1. d4 {[%clk 0:03:00]}  Nf6 {[%clk 0:02:58]} 2. Nc3 {[%clk 0:03:00]}  e6 {[%clk 0:02:56]} 3. Bg5 {[%clk 0:02:56]}  d5 {[%clk 0:02:53]} 4. e4 {[%clk 0:02:54]}  dxe4 {[%clk 0:02:53]} 5. Nxe4 {[%clk 0:02:54]}  Be7 {[%clk 0:02:54]} 6. Bxf6 {[%clk 0:02:54]}  gxf6 {[%clk 0:02:55]} 7. Qd2 {[%clk 0:02:48]}  f5 {[%clk 0:02:31]} 8. Nc3 {[%clk 0:02:47]}  Bf6 {[%clk 0:02:26]} 9. Nf3 {[%clk 0:02:45]}  Bd7 {[%clk 0:02:21]} 10. d5 {[%clk 0:02:36]}  O-O {[%clk 0:02:17]} 11. O-O-O {[%clk 0:02:29]}  e5 {[%clk 0:02:17]} 12. Kb1 {[%clk 0:02:21]}  a5 {[%clk 0:02:16]} 13. h4 {[%clk 0:02:14]}  Na6 {[%clk 0:02:15]} 14. Bc4 {[%clk 0:01:25]}  Nc5 {[%clk 0:02:13]} 15. Rde1 {[%clk 0:00:55]}  Re8 {[%clk 0:02:07]} 16. Ng5 {[%clk 0:00:47]}  b5 {[%clk 0:02:01]} 17. Bxb5 {[%clk 0:00:44]}  Rb8 {[%clk 0:01:58]} 18. Bxd7 {[%clk 0:00:41]}  Qxd7 {[%clk 0:01:56]} 19. b3 {[%clk 0:00:38]}  e4 {[%clk 0:01:46]} 20. Ne2 {[%clk 0:00:37]}  a4 {[%clk 0:01:42]} 21. b4 {[%clk 0:00:14]}  a3 {[%clk 0:01:34]} 22. Nf4 {[%clk 0:00:11]}  Qa4 {[%clk 0:01:26]} 23. c3 {[%clk 0:00:09]}  Na6 {[%clk 0:01:20]} 24. Nh5 {[%clk 0:00:07]}  Be5 {[%clk 0:01:13]} 25. Nxf7 {[%clk 0:00:03]}  Kxf7 {[%clk 0:01:12]} 26. Qh6 {[%clk 0:00:03]}  Rxb4+ {[%clk 0:01:12]} 27. Kc1 {[%clk 0:00:02]}  Rb1+ {[%clk 0:00:40]} 28. Kxb1 {[%clk 0:00:02]}  Qb5+ {[%clk 0:00:40]} 29. Kc1 {[%clk 0:00:02]}  Qb2+ {[%clk 0:00:40]} 30. Kd1 {[%clk 0:00:02]}  Qb1+ {[%clk 0:00:39]} 31. Ke2 {[%clk 0:00:01]}  Qd3# {[%clk 0:00:39]} 0-1


[Site "https://www.chess.com"]

[Event "Titled Tuesday Blitz December 7 2021"]
[White "Colbow, Collin"]
[Black "Atakhan, Abtin"]
[WhiteFideId "16201132"]
[BlackFideId "22502203"]
[WhiteElo "2137"]
[BlackElo "2119"]
[Result "0-1"]
[Round "09"]
[TimeControl "180+1"]
[Date "2021.12.07"]
[WhiteClock "0:01:24"]
[BlackClock "0:01:21"]

1. e4 {[%clk 0:02:44]}  c6 {[%clk 0:02:59]} 2. d4 {[%clk 0:02:44]}  d5 {[%clk 0:03:00]} 3. e5 {[%clk 0:02:44]}  Bf5 {[%clk 0:03:00]} 4. Nd2 {[%clk 0:02:45]}  e6 {[%clk 0:03:00]} 5. Nb3 {[%clk 0:02:45]}  a6 {[%clk 0:03:00]} 6. Nf3 {[%clk 0:02:46]}  Nd7 {[%clk 0:02:54]} 7. Be2 {[%clk 0:02:46]}  c5 {[%clk 0:02:54]} 8. dxc5 {[%clk 0:02:46]}  Nxc5 {[%clk 0:02:55]} 9. Nbd4 {[%clk 0:02:40]}  Bg6 {[%clk 0:02:51]} 10. O-O {[%clk 0:02:40]}  Ne7 {[%clk 0:02:49]} 11. Nh4 {[%clk 0:02:29]}  Nc6 {[%clk 0:02:47]} 12. Nxc6 {[%clk 0:02:28]}  bxc6 {[%clk 0:02:44]} 13. Nxg6 {[%clk 0:02:28]}  hxg6 {[%clk 0:02:45]} 14. Bf4 {[%clk 0:02:28]}  Ne4 {[%clk 0:02:41]} 15. Bg3 {[%clk 0:02:26]}  Bc5 {[%clk 0:02:36]} 16. Bd3 {[%clk 0:02:19]}  Nxg3 {[%clk 0:02:34]} 17. hxg3 {[%clk 0:02:20]}  Qg5 {[%clk 0:02:33]} 18. Re1 {[%clk 0:02:03]}  Qxg3 {[%clk 0:01:58]} 19. Qf3 {[%clk 0:02:03]}  Bxf2+ {[%clk 0:01:54]} 20. Qxf2 {[%clk 0:02:03]}  Rh1+ {[%clk 0:01:54]} 21. Kxh1 {[%clk 0:02:04]}  Qxf2 {[%clk 0:01:54]} 22. Re2 {[%clk 0:02:02]}  Qd4 {[%clk 0:01:54]} 23. Rf1 {[%clk 0:01:57]}  Ke7 {[%clk 0:01:46]} 24. g3 {[%clk 0:01:54]}  Rh8+ {[%clk 0:01:44]} 25. Kg2 {[%clk 0:01:54]}  Qg4 {[%clk 0:01:43]} 26. Ref2 {[%clk 0:01:54]}  Qh3+ {[%clk 0:01:37]} 27. Kf3 {[%clk 0:01:55]}  Rh5 {[%clk 0:01:35]} 28. Ke3 {[%clk 0:01:45]}  Qxg3+ {[%clk 0:01:30]} 29. Kd4 {[%clk 0:01:39]}  Qxe5+ {[%clk 0:01:27]} 30. Kc5 {[%clk 0:01:40]}  Qd6+ {[%clk 0:01:25]} 31. Kb6 {[%clk 0:01:39]}  c5+ {[%clk 0:01:25]} 32. Kb7 {[%clk 0:01:37]}  f6 {[%clk 0:01:24]} 33. Bxa6 {[%clk 0:01:24]}  Rh8 {[%clk 0:01:21]} 0-1


[Site "https://www.chess.com"]

[Event "Titled Tuesday Blitz December 7 2021"]
[White "Csonka, Balazs"]
[Black "Pham, Le Thao Nguyen"]
[WhiteFideId "742910"]
[BlackFideId "12401226"]
[WhiteElo "2404"]
[BlackElo "2286"]
[Result "1-0"]
[Round "09"]
[TimeControl "180+1"]
[Date "2021.12.07"]
[WhiteClock "0:01:49"]
[BlackClock "0:00:05"]

1. e4 {[%clk 0:03:00]}  c5 {[%clk 0:02:10]} 2. Nf3 {[%clk 0:03:00]}  e6 {[%clk 0:02:08]} 3. d4 {[%clk 0:03:00]}  cxd4 {[%clk 0:02:08]} 4. Nxd4 {[%clk 0:03:01]}  a6 {[%clk 0:02:08]} 5. Bd3 {[%clk 0:03:01]}  Bc5 {[%clk 0:01:58]} 6. Nb3 {[%clk 0:02:55]}  Be7 {[%clk 0:01:57]} 7. Qg4 {[%clk 0:02:50]}  g6 {[%clk 0:01:57]} 8. Qe2 {[%clk 0:02:46]}  d6 {[%clk 0:01:55]} 9. O-O {[%clk 0:02:42]}  Nc6 {[%clk 0:01:55]} 10. c4 {[%clk 0:02:39]}  Nf6 {[%clk 0:01:51]} 11. Bh6 {[%clk 0:02:35]}  Nh5 {[%clk 0:01:49]} 12. Qd2 {[%clk 0:02:18]}  Bf6 {[%clk 0:01:24]} 13. g4 {[%clk 0:02:03]}  Ne5 {[%clk 0:01:15]} 14. Be2 {[%clk 0:02:02]}  Ng7 {[%clk 0:00:13]} 15. g5 {[%clk 0:02:01]}  O-O {[%clk 0:00:04]} 16. gxf6 {[%clk 0:01:55]}  Qxf6 {[%clk 0:00:05]} 17. f4 {[%clk 0:01:49]} 1-0


[Site "https://www.chess.com"]

[Event "Titled Tuesday Blitz December 7 2021"]
[White "Devaev, Alexander"]
[Black "Harshavardhan G B"]
[WhiteFideId "4169395"]
[BlackFideId "25059009"]
[WhiteElo "2185"]
[BlackElo "1825"]
[Result "0-1"]
[Round "09"]
[TimeControl "180+1"]
[Date "2021.12.07"]
[WhiteClock "0:01:00"]
[BlackClock "0:02:13"]

1. d4 {[%clk 0:02:54]}  c5 {[%clk 0:02:51]} 2. d5 {[%clk 0:02:54]}  Nf6 {[%clk 0:02:50]} 3. c4 {[%clk 0:02:54]}  d6 {[%clk 0:02:49]} 4. Nc3 {[%clk 0:02:52]}  g6 {[%clk 0:02:49]} 5. e4 {[%clk 0:02:52]}  Bg7 {[%clk 0:02:47]} 6. h3 {[%clk 0:02:53]}  O-O {[%clk 0:02:47]} 7. Nf3 {[%clk 0:02:53]}  a6 {[%clk 0:02:44]} 8. a4 {[%clk 0:02:52]}  e5 {[%clk 0:02:41]} 9. Bg5 {[%clk 0:02:42]}  Nbd7 {[%clk 0:02:38]} 10. a5 {[%clk 0:02:41]}  h6 {[%clk 0:02:37]} 11. Be3 {[%clk 0:02:41]}  Nh5 {[%clk 0:02:36]} 12. Nh2 {[%clk 0:02:33]}  Qe8 {[%clk 0:02:34]} 13. Qd2 {[%clk 0:01:18]}  Kh7 {[%clk 0:02:31]} 14. Qc2 {[%clk 0:01:19]}  f5 {[%clk 0:02:31]} 15. Be2 {[%clk 0:01:16]}  Nf4 {[%clk 0:02:25]} 16. Bf1 {[%clk 0:01:15]}  Nf6 {[%clk 0:02:20]} 17. g3 {[%clk 0:01:12]}  Nxe4 {[%clk 0:02:18]} 18. Nxe4 {[%clk 0:01:10]}  fxe4 {[%clk 0:02:19]} 19. gxf4 {[%clk 0:01:05]}  exf4 {[%clk 0:02:19]} 20. Bd2 {[%clk 0:01:06]}  e3 {[%clk 0:02:20]} 21. Bc3 {[%clk 0:01:04]}  Bf5 {[%clk 0:02:16]} 22. Bd3 {[%clk 0:01:01]}  exf2+ {[%clk 0:02:16]} 23. Kxf2 {[%clk 0:01:01]}  Qe3+ {[%clk 0:02:16]} 24. Kg2 {[%clk 0:01:01]}  Qxh3+ {[%clk 0:02:15]} 25. Kf2 {[%clk 0:01:00]}  Qe3+ {[%clk 0:02:13]} 26. Kg2 {[%clk 0:01:00]}  Bh3# {[%clk 0:02:13]} 0-1


[Site "https://www.chess.com"]

[Event "Titled Tuesday Blitz December 7 2021"]
[White "Dilmukhametov, Artur"]
[Black "Baskin, Robert"]
[WhiteFideId "24179922"]
[BlackFideId "24662402"]
[WhiteElo "2272"]
[BlackElo "2488"]
[Result "0-1"]
[Round "09"]
[TimeControl "180+1"]
[Date "2021.12.07"]
[WhiteClock "0:00:16"]
[BlackClock "0:00:05"]

1. d4 {[%clk 0:02:37]}  Nf6 {[%clk 0:02:54]} 2. Nc3 {[%clk 0:02:34]}  d5 {[%clk 0:02:52]} 3. Bf4 {[%clk 0:02:35]}  c5 {[%clk 0:02:51]} 4. e3 {[%clk 0:02:35]}  cxd4 {[%clk 0:02:50]} 5. exd4 {[%clk 0:02:35]}  a6 {[%clk 0:02:50]} 6. Nf3 {[%clk 0:02:35]}  Nc6 {[%clk 0:02:49]} 7. Qd2 {[%clk 0:02:34]}  Bf5 {[%clk 0:02:41]} 8. Bd3 {[%clk 0:02:31]}  Bxd3 {[%clk 0:02:37]} 9. Qxd3 {[%clk 0:02:32]}  e6 {[%clk 0:02:37]} 10. Ne5 {[%clk 0:02:31]}  Rc8 {[%clk 0:02:34]} 11. O-O {[%clk 0:02:20]}  Bd6 {[%clk 0:02:28]} 12. Ne2 {[%clk 0:02:21]}  O-O {[%clk 0:02:27]} 13. c3 {[%clk 0:02:21]}  Bxe5 {[%clk 0:02:22]} 14. dxe5 {[%clk 0:02:20]}  Nd7 {[%clk 0:02:21]} 15. Qg3 {[%clk 0:02:13]}  Qb6 {[%clk 0:02:10]} 16. Bh6 {[%clk 0:02:09]}  g6 {[%clk 0:02:06]} 17. Bxf8 {[%clk 0:02:05]}  Rxf8 {[%clk 0:02:07]} 18. b3 {[%clk 0:02:01]}  Ndxe5 {[%clk 0:02:04]} 19. Rad1 {[%clk 0:02:00]}  Nd7 {[%clk 0:01:47]} 20. h4 {[%clk 0:02:00]}  Nf6 {[%clk 0:01:46]} 21. Qf4 {[%clk 0:01:55]}  Ne4 {[%clk 0:01:45]} 22. h5 {[%clk 0:01:55]}  Qa5 {[%clk 0:01:36]} 23. h6 {[%clk 0:01:53]}  Nxc3 {[%clk 0:01:15]} 24. Ng3 {[%clk 0:01:40]}  Nxd1 {[%clk 0:01:14]} 25. Rxd1 {[%clk 0:01:38]}  Qc3 {[%clk 0:01:12]} 26. Qg5 {[%clk 0:01:23]}  Qe5 {[%clk 0:01:09]} 27. Qd2 {[%clk 0:01:23]}  Rc8 {[%clk 0:01:07]} 28. Re1 {[%clk 0:01:23]}  Qf6 {[%clk 0:01:05]} 29. Re3 {[%clk 0:01:23]}  Ne5 {[%clk 0:01:00]} 30. Qe1 {[%clk 0:01:16]}  Ng4 {[%clk 0:00:58]} 31. Rf3 {[%clk 0:01:17]}  Qg5 {[%clk 0:00:50]} 32. Qb4 {[%clk 0:01:13]}  Rc1+ {[%clk 0:00:45]} 33. Nf1 {[%clk 0:01:13]}  Qxh6 {[%clk 0:00:45]} 34. Qxg4 {[%clk 0:01:12]}  Qd2 {[%clk 0:00:30]} 35. Re3 {[%clk 0:00:47]}  d4 {[%clk 0:00:24]} 36. Re4 {[%clk 0:00:40]}  d3 {[%clk 0:00:15]} 37. Qh4 {[%clk 0:00:28]}  Rxf1+ {[%clk 0:00:08]} 38. Kxf1 {[%clk 0:00:29]}  Qc1+ {[%clk 0:00:08]} 39. Re1 {[%clk 0:00:29]}  d2 {[%clk 0:00:08]} 40. Qd8+ {[%clk 0:00:29]}  Kg7 {[%clk 0:00:07]} 41. Qd4+ {[%clk 0:00:30]}  f6 {[%clk 0:00:05]} 42. Rxc1 {[%clk 0:00:16]}  dxc1=Q+ {[%clk 0:00:06]} 43. Ke2 {[%clk 0:00:17]}  Qc7 {[%clk 0:00:04]} 44. a4 {[%clk 0:00:16]}  Qe5+ {[%clk 0:00:04]} 45. Qxe5 {[%clk 0:00:16]}  fxe5 {[%clk 0:00:05]} 0-1


[Site "https://www.chess.com"]

[Event "Titled Tuesday Blitz December 7 2021"]
[White "Gabrielian, Artur"]
[Black "Kamsky, Gata"]
[WhiteFideId "4131002"]
[BlackFideId "2000024"]
[WhiteElo "2440"]
[BlackElo "2645"]
[Result "0-1"]
[Round "09"]
[TimeControl "180+1"]
[Date "2021.12.07"]
[WhiteClock "0:00:12"]
[BlackClock "0:01:10"]

1. e4 {[%clk 0:03:00]}  e5 {[%clk 0:02:58]} 2. Nc3 {[%clk 0:02:59]}  Nf6 {[%clk 0:02:57]} 3. g3 {[%clk 0:03:00]}  Bc5 {[%clk 0:02:53]} 4. Bg2 {[%clk 0:02:59]}  d6 {[%clk 0:02:52]} 5. Nge2 {[%clk 0:02:59]}  Nc6 {[%clk 0:02:51]} 6. d3 {[%clk 0:02:58]}  h6 {[%clk 0:02:47]} 7. O-O {[%clk 0:02:57]}  Bg4 {[%clk 0:02:41]} 8. h3 {[%clk 0:02:56]}  Be6 {[%clk 0:02:40]} 9. Nd5 {[%clk 0:02:53]}  Qd7 {[%clk 0:02:37]} 10. Kh2 {[%clk 0:02:30]}  Bxd5 {[%clk 0:02:27]} 11. exd5 {[%clk 0:02:30]}  Ne7 {[%clk 0:02:28]} 12. d4 {[%clk 0:02:24]}  exd4 {[%clk 0:02:26]} 13. Nxd4 {[%clk 0:02:24]}  O-O {[%clk 0:02:22]} 14. c4 {[%clk 0:02:02]}  Rfe8 {[%clk 0:02:16]} 15. b3 {[%clk 0:01:52]}  Nf5 {[%clk 0:02:15]} 16. Nxf5 {[%clk 0:01:38]}  Qxf5 {[%clk 0:02:14]} 17. Bb2 {[%clk 0:01:37]}  a5 {[%clk 0:02:08]} 18. a3 {[%clk 0:01:27]}  Ne4 {[%clk 0:01:56]} 19. Bd4 {[%clk 0:01:15]}  Bxd4 {[%clk 0:01:49]} 20. Qxd4 {[%clk 0:01:15]}  Nc5 {[%clk 0:01:49]} 21. Qc3 {[%clk 0:00:48]}  Re2 {[%clk 0:01:47]} 22. Kg1 {[%clk 0:00:36]}  Rae8 {[%clk 0:01:35]} 23. b4 {[%clk 0:00:30]}  Nd3 {[%clk 0:01:24]} 24. Rad1 {[%clk 0:00:24]}  Nxf2 {[%clk 0:01:18]} 25. Rd2 {[%clk 0:00:11]}  Nxh3+ {[%clk 0:01:16]} 26. Kh2 {[%clk 0:00:12]}  Qxf1 {[%clk 0:01:10]} 0-1


[Site "https://www.chess.com"]

[Event "Titled Tuesday Blitz December 7 2021"]
[White "Gelman, Alexander"]
[Black "Erdogdu, Mert"]
[WhiteFideId "4118316"]
[BlackFideId "6301495"]
[WhiteElo "2375"]
[BlackElo "2485"]
[Result "0-1"]
[Round "09"]
[TimeControl "180+1"]
[Date "2021.12.07"]
[WhiteClock "0:00:01"]
[BlackClock "0:00:08"]

1. d4 {[%clk 0:03:00]}  d5 {[%clk 0:02:59]} 2. Nc3 {[%clk 0:03:01]}  Nf6 {[%clk 0:02:57]} 3. Bf4 {[%clk 0:03:01]}  c5 {[%clk 0:02:57]} 4. e3 {[%clk 0:03:01]}  cxd4 {[%clk 0:02:57]} 5. exd4 {[%clk 0:03:00]}  a6 {[%clk 0:02:57]} 6. Nf3 {[%clk 0:02:58]}  Bg4 {[%clk 0:02:52]} 7. h3 {[%clk 0:02:58]}  Bxf3 {[%clk 0:02:51]} 8. Qxf3 {[%clk 0:02:59]}  Nc6 {[%clk 0:02:51]} 9. O-O-O {[%clk 0:03:00]}  e6 {[%clk 0:02:51]} 10. g4 {[%clk 0:03:00]}  Bd6 {[%clk 0:02:51]} 11. Kb1 {[%clk 0:02:56]}  Qc7 {[%clk 0:02:50]} 12. Bc1 {[%clk 0:02:55]}  b5 {[%clk 0:02:48]} 13. g5 {[%clk 0:02:51]}  Nd7 {[%clk 0:02:48]} 14. h4 {[%clk 0:02:48]}  Nb6 {[%clk 0:02:44]} 15. h5 {[%clk 0:02:47]}  O-O-O {[%clk 0:02:35]} 16. a4 {[%clk 0:02:17]}  Nxa4 {[%clk 0:01:58]} 17. Nxa4 {[%clk 0:02:13]}  bxa4 {[%clk 0:01:59]} 18. Bxa6+ {[%clk 0:02:12]}  Kb8 {[%clk 0:01:59]} 19. Bb5 {[%clk 0:01:57]}  Nb4 {[%clk 0:01:51]} 20. c3 {[%clk 0:01:26]}  Nc6 {[%clk 0:01:23]} 21. c4 {[%clk 0:01:14]}  Na7 {[%clk 0:00:56]} 22. Ba6 {[%clk 0:00:48]}  Qa5 {[%clk 0:00:40]} 23. c5 {[%clk 0:00:40]}  Qxa6 {[%clk 0:00:40]} 24. cxd6 {[%clk 0:00:40]}  Rd7 {[%clk 0:00:40]} 25. g6 {[%clk 0:00:39]}  fxg6 {[%clk 0:00:30]} 26. hxg6 {[%clk 0:00:39]}  h6 {[%clk 0:00:30]} 27. Rhe1 {[%clk 0:00:36]}  Re8 {[%clk 0:00:30]} 28. Qh3 {[%clk 0:00:18]}  Qxd6 {[%clk 0:00:25]} 29. Rd3 {[%clk 0:00:14]}  Nb5 {[%clk 0:00:21]} 30. Rf3 {[%clk 0:00:09]}  Qb6 {[%clk 0:00:20]} 31. Rf7 {[%clk 0:00:09]}  Rb7 {[%clk 0:00:20]} 32. Ka1 {[%clk 0:00:04]}  Nxd4 {[%clk 0:00:16]} 33. Rxb7+ {[%clk 0:00:01]}  Qxb7 {[%clk 0:00:16]} 34. Qd3 {[%clk 0:00:01]}  Nb3+ {[%clk 0:00:16]} 35. Ka2 {[%clk 0:00:02]}  Rc8 {[%clk 0:00:14]} 36. Bf4+ {[%clk 0:00:01]}  Ka7 {[%clk 0:00:13]} 37. Rxe6 {[%clk 0:00:01]}  Rc4 {[%clk 0:00:10]} 38. Be3+ {[%clk 0:00:01]}  Kb8 {[%clk 0:00:08]} 39. Bf4+ {[%clk 0:00:01]}  Ka7 {[%clk 0:00:08]} 40. Be3+ {[%clk 0:00:01]}  Ka8 {[%clk 0:00:08]} 41. Re8+ {[%clk 0:00:01]}  Rc8 {[%clk 0:00:08]} 0-1


[Site "https://www.chess.com"]

[Event "Titled Tuesday Blitz December 7 2021"]
[White "Goryachkina, Aleksandra"]
[Black "Vantika, Agrawal"]
[WhiteFideId "4147103"]
[BlackFideId "25050389"]
[WhiteElo "2441"]
[BlackElo "1917"]
[Result "0-1"]
[Round "09"]
[TimeControl "180+1"]
[Date "2021.12.07"]
[WhiteClock "0:00:03"]
[BlackClock "0:00:23"]

1. e4 {[%clk 0:02:58]}  c5 {[%clk 0:02:57]} 2. Nf3 {[%clk 0:02:58]}  d6 {[%clk 0:02:57]} 3. Bb5+ {[%clk 0:02:58]}  Nd7 {[%clk 0:02:57]} 4. Ba4 {[%clk 0:02:54]}  Nf6 {[%clk 0:02:50]} 5. O-O {[%clk 0:02:53]}  e6 {[%clk 0:02:48]} 6. Re1 {[%clk 0:02:51]}  a6 {[%clk 0:02:47]} 7. c4 {[%clk 0:02:50]}  Be7 {[%clk 0:02:47]} 8. Nc3 {[%clk 0:02:50]}  O-O {[%clk 0:02:46]} 9. d3 {[%clk 0:02:50]}  Qc7 {[%clk 0:02:33]} 10. h3 {[%clk 0:02:47]}  b6 {[%clk 0:02:33]} 11. a3 {[%clk 0:02:43]}  Bb7 {[%clk 0:02:33]} 12. Bd2 {[%clk 0:02:40]}  Nb8 {[%clk 0:02:23]} 13. b4 {[%clk 0:02:34]}  Nc6 {[%clk 0:02:22]} 14. Rb1 {[%clk 0:02:28]}  Nd7 {[%clk 0:02:07]} 15. bxc5 {[%clk 0:02:10]}  bxc5 {[%clk 0:02:03]} 16. Bf4 {[%clk 0:02:00]}  Rab8 {[%clk 0:01:58]} 17. Qd2 {[%clk 0:01:45]}  Bf6 {[%clk 0:01:54]} 18. Ne2 {[%clk 0:01:43]}  Nde5 {[%clk 0:01:39]} 19. Nxe5 {[%clk 0:01:42]}  Nxe5 {[%clk 0:01:35]} 20. Ng3 {[%clk 0:01:24]}  Ng6 {[%clk 0:01:16]} 21. Be3 {[%clk 0:01:21]}  Bc6 {[%clk 0:01:13]} 22. Bxc6 {[%clk 0:01:18]}  Qxc6 {[%clk 0:01:14]} 23. Nh5 {[%clk 0:01:14]}  Bd4 {[%clk 0:01:08]} 24. Bxd4 {[%clk 0:01:11]}  cxd4 {[%clk 0:01:08]} 25. f4 {[%clk 0:00:55]}  Qc5 {[%clk 0:01:07]} 26. Ng3 {[%clk 0:00:52]}  Qxa3 {[%clk 0:01:03]} 27. f5 {[%clk 0:00:25]}  Ne5 {[%clk 0:00:59]} 28. Nh5 {[%clk 0:00:20]}  Rxb1 {[%clk 0:00:50]} 29. Rxb1 {[%clk 0:00:20]}  Qxd3 {[%clk 0:00:49]} 30. Qxd3 {[%clk 0:00:16]}  Nxd3 {[%clk 0:00:49]} 31. Rd1 {[%clk 0:00:16]}  Nc5 {[%clk 0:00:34]} 32. Rxd4 {[%clk 0:00:16]}  a5 {[%clk 0:00:27]} 33. fxe6 {[%clk 0:00:12]}  fxe6 {[%clk 0:00:26]} 34. Rxd6 {[%clk 0:00:12]}  a4 {[%clk 0:00:25]} 35. Rc6 {[%clk 0:00:11]}  a3 {[%clk 0:00:23]} 36. Rxc5 {[%clk 0:00:06]}  Ra8 {[%clk 0:00:23]} 37. Rc7 {[%clk 0:00:03]}  a2 {[%clk 0:00:23]} 38. Rxg7+ {[%clk 0:00:03]}  Kh8 {[%clk 0:00:23]} 0-1


[Site "https://www.chess.com"]